[Event "New York Spring GM-A 2022"]
[Site "New York"]
[Date "2022.04.15"]
[Round "2.2"]
[White "Liang, Jason"]
[Black "Wang, Kevin"]
[Result "1-0"]
[ECO "C43"]
[WhiteElo "2419"]
[BlackElo "2389"]
[Annotator "TA"]
[PlyCount "131"]
[EventDate "2022.04.14"]
[EventType "tourn"]
[EventCountry "USA"]
[SourceTitle "playchess.com"]
[Source "ChessBase"]
[SourceQuality "1"]
[TimeControl "5400+30"]

{[%evp 17,131,11,7,11,14,7,16,17,26,19,29,32,17,24,22,15,40,47,41,18,6,0,70,25,87,58,54,52,127,134,152,147,149,148,167,150,138,139,125,139,150,151,155,153,158,156,153,155,164,145,153,143,131,108,108,0,145,145,145,145,145,145,145,145,145,145,145,145,145,145,145,133,113,81,93,87,98,95,175,63,68,50,85,16,106,106,106,106,106,106,106,106,106,106,107,107,107,107,107,107,107,0,0,0,0,0,0,16,49,0,12837,12838,12838,12837,12837,12838]} 1. e4 {[%emt 0:00:03]} e5 {[%emt 0:00:39]} 2. Nf3 {[%emt 0:00:10]} Nf6 {[%emt 0:00:38]} 3. d4 {[%emt 0:00:33]} Nxe4 {[%emt 0:00:19]} 4. Bd3 {[%emt 0:00:09]} d5 {[%emt 0:00:28]} 5. Nxe5 {[%emt 0:00:12]} Nd7 {[%emt 0:00:30]} 6. Nxd7 {[%emt 0:01:52]} Bxd7 {[%emt 0:00:23]} 7. O-O {[%emt 0:00:23]} Bd6 {[%emt 0:02:38]} 8. Nc3 {[%emt 0:04:20]} Nxc3 {[%emt 0:02:50]} 9. bxc3 {[%emt 0:00:06]} O-O {[%emt 0:03:31]} 10. Qh5 {[%emt 0:00:17][%csl Gd3,LRd5,LRh7][%cal Rh5h7] Inhibits Qh4. C43: Petroff Defence: 3 d4.} f5 {[%emt 0:01:35]} 11. Re1 {[%emt 0:00:38]} Qf6 {[%emt 0:08:54]} 12. Qf3 {[%emt 0:03:43] The position is equal.} c6 {[%emt 0:09:50]} 13. Bf4 {[%emt 0:01:19]} Rae8 {[%emt 0:05:33][%cal Oe8e4]} 14. c4 {[%emt 0:02:14]} dxc4 {[%emt 0:05:16]} 15. Bxc4+ {[%emt 0:00:09]} Kh8 {[%emt 0:00:26]} 16. c3 {[%emt 0:14:19] [#]} Re7 $146 {[%emt 0:06:54]} ({Predecessor:} 16... b5 17. Bf1 a5 18. Qg3 Bxf4 19. Qxf4 Re4 20. Qd2 b4 21. Rad1 Qd6 22. Rxe4 fxe4 23. cxb4 axb4 {½-½ (41) Nesterov,A (2482)-Zhafyarov,A (2252) Loo 2021}) 17. Rxe7 {[%emt 0:09:44]} Qxe7 {[%emt 0:00:48]} 18. Bxd6 {[%emt 0:00:24]} Qxd6 {[%emt 0:00:02]} 19. Re1 {[%emt 0:00:12][%cal Ba1e1,Be1e7,Be7c7][%mdl 32]} f4 {[%emt 0:07:49]} (19... b5 $11 20. Bf1 Be6) 20. Bd3 {[%emt 0:04:02]} Qd5 {[%emt 0:08:40]} (20... Be6 $11) 21. Re7 {[%emt 0:09:32] aiming for Qxd5.} Qxf3 {[%emt 0:03:18]} 22. gxf3 $14 {[%emt 0:00:06][%mdl 4096] Endgame KRB-KRB} Bc8 {[%emt 0:00:10]} (22... Rd8 $14) 23. h4 {[%emt 0:05:07] &Bianco is more active.} g6 {[%emt 0:03:59]} 24. Be4 {[%emt 0:02:53]} Kg8 {[%emt 0:04:45]} 25. Rc7 {[%emt 0:00:44]} Re8 {[%emt 0:03:23]} 26. Kg2 {[%emt 0:02:23]} a5 {[%emt 0:00:44]} 27. a3 {[%emt 0:00:30][%cal Oh4h5]} Rd8 {[%emt 0:01:38]} 28. Bc2 {[%emt 0:02:11]} Kh8 {[%emt 0:01:14]} 29. h5 {[%emt 0:07:40]} gxh5 {[%emt 0:00:47]} 30. Rxh7+ {[%emt 0:00:06]} Kg8 {[%emt 0:00:01]} 31. Rxh5 {[%emt 0:00:09]} Kf7 {[%emt 0:04:57]} 32. Rxa5 {[%emt 0:04:55]} Be6 {[%emt 0:00:47]} 33. Rg5 {[%emt 0:04:59]} Rh8 {[%emt 0:00:43]} 34. a4 {[%emt 0:02:47]} Kf6 {[%emt 0:00:55]} 35. Rg6+ {[%emt 0:04:34]} Kf7 {[%emt 0:00:00]} 36. Rg5 {[%emt 0:01:15]} Kf6 $1 {[%emt 0:00:02]} 37. Re5 {[%emt 0:01:20]} Bh3+ {[%emt 0:00:54]} 38. Kg1 {[%emt 0:00:09]} Rg8+ {[%emt 0:00:17]} 39. Kh2 {[%emt 0:00:07]} Rh8 {[%emt 0:01:10] [#] ...Bf5+ is the strong threat.} 40. Be4 {[%emt 0:00:24]} Be6+ {[%emt 0:01:36]} 41. Kg1 {[%emt 0:00:10]} Rg8+ {[%emt 0:00:31]} 42. Kf1 {[%emt 0:00:50]} Bc4+ {[%emt 0:00:05]} 43. Ke1 {[%emt 0:00:05]} Rg1+ {[%emt 0:00:03]} 44. Kd2 {[%emt 0:00:06]} Ra1 {[%emt 0:00:09]} 45. Rf5+ {[%emt 0:03:42]} Ke6 {[%emt 0:00:01]} 46. Rxf4 {[%emt 0:00:34] And now Rh4 would win.} Ra2+ {[%emt 0:00:13]} 47. Kc1 {[%emt 0:00:20]} Rxa4 {[%emt 0:01:20]} (47... Ra1+ $16 {was called for.} 48. Kc2 Rxa4) 48. Bb1 {[%emt 0:00:49]} ({Better is} 48. Rh4 $18) 48... b5 {[%emt 0:02:11]} 49. Rh4 {[%emt 0:04:42] Hoping for Rh6+.} b4 {[%emt 0:04:33]} 50. Kb2 {[%emt 0:00:35]} (50. Rh6+ $16 Kd7 51. Bf5+ Kc7 52. Be4) 50... bxc3+ {[%emt 0:00:27]} (50... Bd5 $11 {remains equal.}) 51. Kxc3 $16 {[%emt 0:00:06]} Bd5 {[%emt 0:00:11]} 52. Be4 {[%emt 0:02:37]} Ra2 {[%emt 0:00:06]} 53. Rh6+ {[%emt 0:00:07]} Ke7 {[%emt 0:00:15]} 54. Rh2 {[%emt 0:03:39]} Ke6 {[%emt 0:00:11]} 55. Kd3 {[%emt 0:00:23]} Ra3+ {[%emt 0:00:37]} 56. Kd2 {[%emt 0:00:07]} Ke7 {[%emt 0:02:05]} 57. Rh7+ {[%emt 0:00:32]} Ke6 {[%emt 0:00:13]} 58. Rh6+ {[%emt 0:00:07]} Ke7 {[%emt 0:00:03]} 59. Bxd5 {[%emt 0:03:11]} (59. Rg6 $16) 59... cxd5 {[%emt 0:00:01] KR-KR} 60. Ke2 {[%emt 0:00:10]} Rb3 {[%emt 0:00:35]} 61. Rc6 {[%emt 0:00:54]} Ra3 {[%emt 0:00:34]} 62. Rb6 {[%emt 0:00:29]} Rc3 {[%emt 0:00:29]} 63. f4 {[%emt 0:00:33]} (63. Rb8 $14) 63... Ra3 $2 {[%emt 0:00:29][%mdl 8192] [#]} (63... Rc2+ $11 64. Kf3 Rc4) 64. f5 $1 $18 {[%emt 0:00:08] White is clearly winning.} Rh3 {[%emt 0:00:43]} 65. Re6+ {[%emt 0:00:13]} Kd7 {[%emt 0:00:17]} 66. f3 {[%emt 0:00:33] Weighted Error Value: White=0.14 (very precise) /Black=0.14 (very precise)} 1-0

[Event "New York Spring GM-A 2022"]
[Site "New York"]
[Date "2022.04.15"]
[Round "2.3"]
[White "Guo, Arthur"]
[Black "Ostrovskiy, Aleksandr"]
[Result "1-0"]
[ECO "C02"]
[WhiteElo "2412"]
[BlackElo "2409"]
[Annotator "TA"]
[PlyCount "69"]
[EventDate "2022.04.14"]
[EventType "tourn"]
[EventCountry "USA"]
[SourceTitle "playchess.com"]
[Source "ChessBase"]
[SourceQuality "1"]
[TimeControl "5400+30"]

{[%evp 11,69,0,0,-31,-17,-31,-15,-21,-16,-49,-36,-50,-47,-58,-52,-53,-53,-52,-53,-69,-75,-89,-57,-93,-77,-89,-93,-78,-95,-82,-40,-81,-84,-104,-111,-129,-139,-136,-35,-43,-43,-41,319,316,540,540,545,543,575,575,575,575,575,575,574,574,727,727,727,727]} 1. e4 {[%emt 0:02:36]} e6 {[%emt 0:05:52]} 2. d4 {[%emt 0:00:11]} d5 {[%emt 0:00:06]} 3. e5 {[%emt 0:00:08]} c5 {[%emt 0:00:44]} 4. c3 {[%emt 0:00:11]} Nc6 {[%emt 0:00:44]} 5. Nf3 {[%emt 0:00:36]} Qb6 {[%emt 0:01:13]} 6. Bd3 {[%emt 0:00:17]} cxd4 {[%emt 0:00:25]} 7. O-O $1 {[%emt 0:00:15][%mdl 4] is now more promising than 7.cxd4. C02: French: Advance Variation.} Bd7 {[%emt 0:00:11]} 8. Re1 {[%emt 0:00:13]} Nge7 {[%emt 0:05:43]} 9. h4 {[%emt 0:00:13] The position is equal.} h6 {[%emt 0:00:22]} 10. h5 {[%emt 0:00:12]} Rc8 {[%emt 0:02:43]} 11. Nbd2 {[%emt 0:00:18]} dxc3 {[%emt 0:01:38]} 12. bxc3 {[%emt 0:00:13]} Na5 {[%emt 0:00:21]} 13. Rb1 {[%emt 0:02:23]} Qc7 {[%emt 0:00:29]} 14. Ba3 {[%emt 0:03:59]} Qxc3 {[%emt 0:03:13]} 15. Nb3 {[%emt 0:00:35] Black must now prevent Rc1.} Nec6 {[%emt 0:00:31]} 16. Rc1 {[%emt 0:21:04] [#]} Qxe1+ {[%emt 0:01:32]} 17. Qxe1 {[%emt 0:00:16]} Bxa3 {[%emt 0:00:05] [#]} 18. Rc2 $146 {[%emt 0:02:53]} ({Predecessor:} 18. Rb1 b6 19. Nxa5 Nxa5 20. Qe3 Nc4 21. Bxc4 Bc5 22. Qc3 dxc4 23. Nd2 O-O 24. Nxc4 {½-½ (31) Shevchenko,K (2652)-Gadimbayli,A (2451) Terme Catez 2022}) 18... Nxb3 {[%emt 0:10:14]} 19. axb3 {[%emt 0:00:07]} O-O {[%emt 0:01:47]} 20. Qe3 {[%emt 0:03:23]} Be7 {[%emt 0:16:56]} 21. Nd4 {[%emt 0:19:37]} Nb4 {[%emt 0:19:09]} 22. Rxc8 {[%emt 0:03:50]} Rxc8 {[%emt 0:00:56]} ({But not} 22... Bxc8 $6 23. Nb5 $15) 23. Bb1 {[%emt 0:02:45] [#]} a5 $1 {[%emt 0:07:40] Hoping for ...Bc5.} 24. Nf3 {[%emt 0:07:19]} a4 {[%emt 0:10:56]} ({Black should try} 24... Bc5 $17 25. Qf4 a4 26. bxa4 Bxa4) 25. bxa4 $15 {[%emt 0:03:10]} Bxa4 {[%emt 0:00:09]} 26. Kh2 $1 {[%emt 0:05:12]} b5 $2 {[%emt 0:06:17][%mdl 8192] [#] This move loses the game for Black.} (26... Bc5 $15 {stays ahead.} 27. Qc3 Bd1) 27. Qa7 $1 $18 {[%emt 0:02:19]} Bf8 {[%emt 0:03:20]} (27... Bc5 {was necessary.} 28. Qb7 Re8) 28. Qd7 {[%emt 0:02:02] White is clearly winning.} Ra8 {[%emt 0:00:26]} 29. Nd4 {[%emt 0:00:53] Prevents Bc2.} Bd1 {[%emt 0:00:42]} 30. f3 {[%emt 0:09:25]} Bc5 {[%emt 0:00:33] [#]} 31. Nxe6 {[%emt 0:00:24][%mdl 512]} fxe6 {[%emt 0:00:08]} 32. Qxe6+ {[%emt 0:00:03]} Kh8 {[%emt 0:00:14]} 33. Qg6 {[%emt 0:00:22][%csl Gb1][%cal Rg6h7]} Bc2 {[%emt 0:00:06]} 34. Bxc2 {[%emt 0:00:06][%mdl 64] Overworked Piece} Nxc2 {[%emt 0:00:02]} 35. Qc6 {[%emt 0:01:02] Weighted Error Value: White=0.06 (flawless) /Black=0.45} 1-0

[Event "New York Spring GM-A 2022"]
[Site "New York"]
[Date "2022.04.15"]
[Round "2.4"]
[White "Kaliksteyn, Alexander"]
[Black "Song, Edward"]
[Result "1/2-1/2"]
[ECO "D02"]
[WhiteElo "2379"]
[BlackElo "2383"]
[Annotator "TA"]
[PlyCount "41"]
[EventDate "2022.04.14"]
[EventType "tourn"]
[EventCountry "USA"]
[SourceTitle "playchess.com"]
[Source "ChessBase"]
[SourceQuality "1"]
[TimeControl "5400+30"]

{[%evp 9,41,-18,-25,-15,-14,-9,-17,-29,-36,-25,-36,-14,-37,-15,-6,0,-8,-44,-32,-73,-9,-18,0,-16,0,7,0,0,0,0,0,0,-2,-4]} 1. d4 {[%emt 0:00:11]} d5 {[%emt 0:00:15]} 2. Nf3 {[%emt 0:00:08]} Nf6 {[%emt 0:00:05]} 3. c3 {[%emt 0:00:27]} c5 {[%emt 0:00:46]} 4. dxc5 {[%emt 0:02:00]} e6 {[%emt 0:00:08]} 5. b4 {[%emt 0:00:14]} a5 $1 {[%emt 0:00:18]} 6. e3 {[%emt 0:00:23] D02: 1 d4 d5 2 Nf3 sidelines, including 2...Nf6 3 g3 and 2...Nf6 3 Bf4.} axb4 {[%emt 0:00:13]} 7. cxb4 {[%emt 0:00:06]} b6 $1 {[%emt 0:00:08]} 8. Bb5+ {[%emt 0:00:42]} Bd7 {[%emt 0:00:05]} 9. Bxd7+ {[%emt 0:00:07]} Nbxd7 {[%emt 0:00:05]} 10. a4 {[%emt 0:00:49]} bxc5 {[%emt 0:00:07]} 11. b5 {[%emt 0:00:03]} g5 {[%emt 0:00:10][%cal Bg7g5,Bg5g4][%mdl 32]} 12. Bb2 {[%emt 0:07:17]} Bd6 {[%emt 0:00:13] [#] Prevents Ne5.} 13. Qc2 $146 {[%emt 0:09:48][%cal Oe3e4]} ({Predecessor:} 13. Nfd2 Ne5 14. O-O g4 15. Qe2 Rg8 16. Rd1 Qe7 17. b6 c4 18. a5 Nd3 19. Ba3 Bxa3 20. Nxa3 {1-0 (35) Bluebaum,M (2642)-Grischuk,A (2758) Chess.com INT 2022}) 13... g4 {[%emt 0:11:41]} 14. Nfd2 {[%emt 0:03:33]} Qc7 {[%emt 0:09:52]} ({Better is} 14... h5 $17) 15. Nc3 $11 {[%emt 0:19:24] The position is equal.} h5 {[%emt 0:21:28]} 16. Ne2 {[%emt 0:25:16]} Be5 {[%emt 0:23:00]} 17. Bxe5 {[%emt 0:03:31]} Qxe5 {[%emt 0:00:06]} 18. O-O {[%emt 0:01:07]} Ke7 {[%emt 0:00:58]} 19. a5 {[%emt 0:05:45]} Rhb8 {[%emt 0:01:58]} 20. Qb3 {[%emt 0:03:16]} Ne8 {[%emt 0:07:50]} 21. f4 {[%emt 0:07:56] Weighted Error Value: White=0.03 (flawless) /Black=0.08 (flawless)} 1/2-1/2

[Event "New York Spring GM-A 2022"]
[Site "New York"]
[Date "2022.04.15"]
[Round "2.5"]
[White "Barbosa, Oliver"]
[Black "Korley, Kassa"]
[Result "1-0"]
[ECO "D30"]
[WhiteElo "2505"]
[BlackElo "2399"]
[Annotator "TA"]
[PlyCount "71"]
[EventDate "2022.04.14"]
[EventType "tourn"]
[EventCountry "USA"]
[SourceTitle "playchess.com"]
[Source "ChessBase"]
[SourceQuality "1"]
[TimeControl "5400+30"]

{[%evp 17,71,23,19,21,19,16,8,12,16,-13,0,0,4,0,0,-19,0,-25,-22,-68,-50,-36,-10,-67,-51,-71,-80,-81,-80,-54,0,-25,-31,0,0,8,0,-30,-18,-30,0,0,0,0,60,67,188,33,18,0,5,0,240,252,568,539]} 1. Nf3 {[%emt 0:00:07]} d5 {[%emt 0:01:21]} 2. g3 {[%emt 0:00:48]} Nf6 {[%emt 0:00:08]} 3. c4 {[%emt 0:00:22]} e6 {[%emt 0:00:06]} 4. Bg2 {[%emt 0:00:18]} Be7 {[%emt 0:00:04]} 5. O-O {[%emt 0:00:17]} O-O {[%emt 0:00:05]} 6. d4 {[%emt 0:00:28]} dxc4 {[%emt 0:00:22]} 7. Qa4 {[%emt 0:02:39]} c6 {[%emt 0:11:57]} 8. Qxc4 {[%emt 0:00:45]} b5 {[%emt 0:00:04]} 9. Qc2 {[%emt 0:03:13]} Bb7 {[%emt 0:00:07]} 10. Nc3 {[%emt 0:01:39] D30: Queen's Gambit Declined: Systems without Nc3.} Nbd7 {[%emt 0:02:24]} 11. Rd1 {[%emt 0:01:26]} Qb6 {[%emt 0:00:48]} 12. e4 {[%emt 0:04:20] The position is equal.} c5 {[%emt 0:16:51]} 13. d5 {[%emt 0:17:18]} (13. e5 {keeps more tension.} Nd5 14. dxc5 Nxc5 15. Nxd5 Bxd5 16. Be3) 13... exd5 {[%emt 0:07:52]} 14. exd5 {[%emt 0:12:38]} Bd6 {[%emt 0:06:22] [#]} 15. Nh4 $146 {[%emt 0:03:48]} ({Predecessor:} 15. Ng5 Rfe8 16. Nce4 Bf8 17. Be3 h6 18. b4 hxg5 19. bxc5 Nxc5 20. Nxc5 Rxe3 21. Nxb7 {0-1 (35) Nikcevic,N (2417)-Raicevic,M (2372) Ulcinj 2014}) 15... g6 {[%emt 0:02:34] Prevents Nf5.} 16. b3 {[%emt 0:10:17]} Rfe8 {[%emt 0:05:24]} 17. Bb2 {[%emt 0:04:05]} Rac8 {[%emt 0:09:46]} 18. Bf1 {[%emt 0:03:33]} (18. Re1 $11) 18... a6 {[%emt 0:02:09]} 19. a4 {[%emt 0:07:00][%cal Ra4b5]} c4 {[%emt 0:05:54]} (19... b4 $5 {[%cal Rb4c3]} 20. a5 Qd8 $15) 20. axb5 {[%emt 0:01:02]} (20. bxc4 $11 bxc4 21. Rab1) 20... cxb3 $1 $15 {[%emt 0:00:33]} (20... axb5 21. bxc4 Ne5 22. Qb3 (22. cxb5 Neg4 $11) (22. Nxb5 Qxb5 23. Bxe5 Bxe5 $15) 22... Nxc4 23. Qxb5 (23. Bxc4 Ng4 $15) 23... Qxb5 24. Nxb5 Nxb2 25. Nxd6 Nxd1 26. Rxd1 Bxd5 27. Nxe8 Rxe8 28. Ng2 $11) 21. Qxb3 {[%emt 0:00:31]} Ng4 {[%emt 0:02:18]} 22. Rd2 {[%emt 0:00:32] Hoping for Na4.} Bc5 $1 {[%emt 0:02:28][%cal Rc5f2]} 23. Nd1 {[%emt 0:01:22]} Re1 {[%emt 0:03:04]} (23... Ndf6 $15 24. Bxf6 Nxf6) 24. Nf3 {[%emt 0:08:18] [#] Dancing on a razor blade.} (24. Kg2 $5 {[%cal Rh4f3]}) 24... Rxd1 {[%emt 0:01:17]} 25. Raxd1 {[%emt 0:02:37] And now Bd4 would win.} Nxf2 {[%emt 0:04:54]} 26. Rxf2 {[%emt 0:00:46]} Bxf2+ {[%emt 0:00:04]} 27. Kg2 {[%emt 0:02:33]} (27. Kh1 $5 {[%cal Rf1h3]}) 27... axb5 {[%emt 0:00:18]} 28. Ba1 {[%emt 0:00:47] Strongly threatening Qb2.} ({Reject} 28. Qxb5 Rc2 29. Qxd7 (29. Rd2 Rxd2 30. Nxd2 Bc5 $17) 29... Bc5+ 30. Kh3 Rxb2 $17) 28... Bc5 {[%emt 0:03:43]} ({Don't play} 28... f6 29. Bxb5 Rc5 30. Ba4 Qxb3 31. Bxb3 $14) 29. Qb2 $36 {[%emt 0:00:19][%csl Ga1][%cal Rb2g7][%mdl 2048] White is pushing.} f6 {[%emt 0:01:03]} 30. Bxb5 {[%emt 0:00:12]} Ba3 {[%emt 0:02:13]} 31. Qe2 $14 {[%emt 0:01:34]} Nf8 {[%emt 0:00:10] [#]} (31... Qd6 $14) 32. Bc4 $2 {[%emt 0:03:46]} (32. d6 $1 $18 Bxd6 33. Bxf6) 32... Qd6 {[%emt 0:00:53]} 33. Bb3 {[%emt 0:02:02]} Bb4 {[%emt 0:02:48]} 34. Qe3 {[%emt 0:00:25][%cal Of3g5] aiming for Ng5!} Kf7 $2 {[%emt 0:01:21] [#]} (34... Nd7 $11 {and Black is okay.}) 35. Ng5+ $1 $18 {[%emt 0:02:37]} Kg8 $2 {[%emt 0:00:53]} (35... fxg5 {is more resistant.} 36. Rf1+ Kg8) 36. Ne4 {[%emt 0:00:15][%csl LRd6,LRf6] Weighted Error Value: White=0.19 (very precise) /Black=0.42} 1-0

[Event "New York Spring GM-A 2022"]
[Site "New York"]
[Date "2022.04.16"]
[Round "3.1"]
[White "Korley, Kassa"]
[Black "Belous, Vladimir"]
[Result "1/2-1/2"]
[ECO "E63"]
[WhiteElo "2399"]
[BlackElo "2516"]
[Annotator "TA"]
[PlyCount "67"]
[EventDate "2022.04.14"]
[EventType "tourn"]
[EventCountry "USA"]
[SourceTitle "playchess.com"]
[Source "ChessBase"]
[SourceQuality "1"]
[TimeControl "5400+30"]

{[%evp 14,67,32,21,14,14,30,9,4,31,17,-22,0,0,0,-56,-43,-46,-42,-47,-40,-120,-112,-109,-126,-123,-145,-150,-139,-129,-27,-18,-14,-18,-16,-14,-23,-23,-17,-17,0,0,0,0,0,0,86,97,90,81,90,-8,-8,-8,-8,0]} 1. d4 {[%emt 0:00:02]} Nf6 {[%emt 0:00:05]} 2. c4 {[%emt 0:00:05]} g6 {[%emt 0:00:07]} 3. g3 {[%emt 0:00:06]} Bg7 {[%emt 0:02:00]} 4. Bg2 {[%emt 0:00:07]} O-O {[%emt 0:00:06]} 5. Nc3 {[%emt 0:00:04]} d6 {[%emt 0:00:03]} 6. Nf3 {[%emt 0:00:09]} Nc6 {[%emt 0:00:05]} 7. O-O {[%emt 0:00:28]} a6 {[%emt 0:00:53]} 8. Bf4 {[%emt 0:01:55] 8.b3 is becoming the main line.} Rb8 {[%emt 0:01:51] E63: King's Indian: Fianchetto: Panno Variation with 7...a6.} 9. Rc1 {[%emt 0:02:51]} Bd7 {[%emt 0:02:30]} 10. c5 {[%emt 0:11:28]} dxc5 {[%emt 0:05:41] [#]} 11. d5 $146 {[%emt 0:09:48]} ({Predecessor:} 11. dxc5 Nh5 12. Be3 Nf6 13. Rc2 Qc8 14. Nd4 Nxd4 15. Bxd4 Bh3 16. Rd2 Bxg2 17. Kxg2 {1-0 (43) Tarjan,J (2478)-Wang,J (2364) Las Vegas 2015}) 11... Na5 {[%emt 0:07:09]} 12. Na4 {[%emt 0:01:59]} b6 {[%emt 0:03:25][%cal Of6d5,Bb7b6,Bb6b5,Bb5c4,Bc4c3][%mdl 32]} 13. b4 {[%emt 0:01:08]} Nc4 {[%emt 0:09:31][%cal Oc5b4]} (13... cxb4 14. Bxc7 Bxa4 15. Qxa4 $16) 14. Rxc4 {[%emt 0:29:08]} ({White should play} 14. Nxc5 $11 Nb2 15. Qc2 bxc5 16. Qxb2) 14... Bxa4 $15 {[%emt 0:00:12]} 15. Qxa4 {[%emt 0:00:07]} b5 $36 {[%emt 0:00:04][%mdl 2048] Black has good play.} 16. Qa5 {[%emt 0:02:39]} (16. Bxc7 $2 Qxc7 17. Rxc5 Qxc5 $3 {[%mdl 512]} 18. bxc5 bxa4 $19) 16... bxc4 {[%emt 0:01:22]} 17. Ne5 {[%emt 0:07:20]} (17. Bxc7 $15 Qxd5 18. Bxb8 Rxb8 19. bxc5) 17... cxb4 $17 {[%emt 0:05:52]} (17... Nxd5 $6 18. Nc6 Rb5 19. Qxa6 $11) 18. Nc6 {[%emt 0:04:27]} Qd7 {[%emt 0:00:22]} 19. Qxa6 {[%emt 0:02:41]} c3 {[%emt 0:00:17]} (19... Nxd5 $2 20. Bxd5 c3 21. Nxb8 Rxb8 22. Rd1 $18) 20. Qc4 {[%emt 0:02:13]} Rb6 {[%emt 0:03:22]} 21. Be3 {[%emt 0:00:19] [#]} e6 {[%emt 0:04:22]} (21... Rxc6 $1 $17 22. dxc6 Qg4) 22. dxe6 $11 {[%emt 0:00:57]} Qxe6 {[%emt 0:02:58]} 23. Qxe6 {[%emt 0:00:13]} fxe6 {[%emt 0:00:06]} 24. Bxb6 {[%emt 0:00:02]} cxb6 {[%emt 0:00:40]} 25. Nxb4 {[%emt 0:00:16]} Rd8 {[%emt 0:01:43]} 26. Rc1 {[%emt 0:01:32]} Nd5 {[%emt 0:00:43]} 27. Rd1 {[%emt 0:01:51][%cal Rb4d5]} Bf8 {[%emt 0:01:30]} 28. Nc2 {[%emt 0:01:33] Strongly threatening e4.} Ra8 {[%emt 0:01:50]} 29. a3 {[%emt 0:01:45] Hoping for Rxd5.} ({Of course not} 29. Rxd5 Rxa2 30. Be4 {[#]} Rxc2 $1 31. Bxc2 exd5 $17) 29... Rxa3 {[%emt 0:04:04]} (29... Ra5 $11 {keeps the balance.}) 30. Nxa3 $16 {[%emt 0:02:58]} ({Don't blunder} 30. Bxd5 $2 exd5 31. Rd3 (31. Nxa3 $2 Bxa3 32. Kf1 c2 $19) 31... d4 $19) 30... Bxa3 {[%emt 0:00:15]} 31. Be4 {[%emt 0:00:03]} b5 {[%emt 0:00:20]} 32. Rxd5 {[%emt 0:00:21]} (32. Bc2 $16) 32... exd5 $11 {[%emt 0:00:06]} 33. Bxd5+ {[%emt 0:00:02]} Kf8 {[%emt 0:00:07] ...c2 is the strong threat.} 34. Bb3 {[%emt 0:00:03] Weighted Error Value: White=0.18 (very precise) /Black=0.15 (very precise)} 1/2-1/2